[Event "Early-Titled-Tuesday-Blitz-November-28-2023"]
[Site "Chess.com"]
[Date "2023.11.28"]
[Round "9"]
[White "mortngabriel"]
[Black "angryspacevoid"]
[Result "1-0"]
[WhiteElo "2507"]
[BlackElo "2471"]
[TimeControl "180+1"]
[EndTime "9:52:53 PST"]
[Termination "mortngabriel won by checkmate"]

1. e4 {[%clk 0:03:00.9]} 1... e5 {[%clk 0:02:55.4]} 2. Nc3 {[%clk 0:03:00.5]}
2... Nc6 {[%clk 0:02:54.7]} 3. Bc4 {[%clk 0:03:00.8]} 3... Nf6 {[%clk
0:02:54.4]} 4. d3 {[%clk 0:03:00.9]} 4... Na5 {[%clk 0:02:54.8]} 5. Qf3 {[%clk
0:02:56.2]} 5... Nxc4 {[%clk 0:02:51.9]} 6. dxc4 {[%clk 0:02:57.1]} 6... h6
{[%clk 0:02:42.2]} 7. Nge2 {[%clk 0:02:56.3]} 7... Bc5 {[%clk 0:02:33.2]} 8. O-O
{[%clk 0:02:51.3]} 8... d6 {[%clk 0:02:28.7]} 9. h3 {[%clk 0:02:50.6]} 9... Be6
{[%clk 0:02:09.9]} 10. b3 {[%clk 0:02:50.1]} 10... Qd7 {[%clk 0:02:02.5]} 11.
Be3 {[%clk 0:02:44.5]} 11... Bxe3 {[%clk 0:01:57.6]} 12. Qxe3 {[%clk 0:02:45.4]}
12... O-O {[%clk 0:01:49.9]} 13. Nd5 {[%clk 0:02:37.7]} 13... Qd8 {[%clk
0:01:45.4]} 14. Rad1 {[%clk 0:02:32.7]} 14... Nxd5 {[%clk 0:01:43.2]} 15. cxd5
{[%clk 0:02:32.6]} 15... Bd7 {[%clk 0:01:41.3]} 16. f4 {[%clk 0:02:30.7]} 16...
exf4 {[%clk 0:01:35.4]} 17. Qxf4 {[%clk 0:02:24.4]} 17... Qe7 {[%clk 0:01:32.2]}
18. Ng3 {[%clk 0:02:20.2]} 18... Rae8 {[%clk 0:01:26.8]} 19. Rd3 {[%clk
0:02:10.2]} 19... Qe5 {[%clk 0:01:21.5]} 20. Qf2 {[%clk 0:02:09.4]} 20... a5
{[%clk 0:01:07.6]} 21. Rf3 {[%clk 0:02:08.6]} 21... Re7 {[%clk 0:01:00.6]} 22.
Qa7 {[%clk 0:01:58.7]} 22... b6 {[%clk 0:00:57.6]} 23. a4 {[%clk 0:01:41.2]}
23... Qd4+ {[%clk 0:00:35.6]} 24. Kh1 {[%clk 0:01:39]} 24... Qc5 {[%clk
0:00:36.5]} 25. R1f2 {[%clk 0:01:23.5]} 25... h5 {[%clk 0:00:27.8]} 26. Nxh5
{[%clk 0:00:50.5]} 26... Rxe4 {[%clk 0:00:26.2]} 27. Nf4 {[%clk 0:00:28.9]}
27... Re3 {[%clk 0:00:18.3]} 28. Qa6 {[%clk 0:00:26.9]} 28... Rxf3 {[%clk
0:00:16.1]} 29. Rxf3 {[%clk 0:00:27.8]} 29... Re8 {[%clk 0:00:15.9]} 30. Qd3
{[%clk 0:00:25]} 30... Re1+ {[%clk 0:00:14]} 31. Kh2 {[%clk 0:00:24.6]} 31...
Qg1+ {[%clk 0:00:12]} 32. Kg3 {[%clk 0:00:24.9]} 32... Re5 {[%clk 0:00:12.6]}
33. h4 {[%clk 0:00:20.6]} 33... Qe1+ {[%clk 0:00:10.6]} 34. Kh2 {[%clk
0:00:17.7]} 34... Qxh4+ {[%clk 0:00:10.7]} 35. Nh3 {[%clk 0:00:18.6]} 35... f6
{[%clk 0:00:09.3]} 36. c4 {[%clk 0:00:17.9]} 36... Be8 {[%clk 0:00:06.8]} 37.
Qf1 {[%clk 0:00:16.9]} 37... Bh5 {[%clk 0:00:05.8]} 38. Rg3 {[%clk 0:00:17.1]}
38... Bf7 {[%clk 0:00:05.4]} 39. Qf4 {[%clk 0:00:16.9]} 39... Qxf4 {[%clk
0:00:03.3]} 40. Nxf4 {[%clk 0:00:17.8]} 40... Rf5 {[%clk 0:00:02.6]} 41. Ne2
{[%clk 0:00:15.8]} 41... Re5 {[%clk 0:00:02.9]} 42. Nd4 {[%clk 0:00:16]} 42...
Be8 {[%clk 0:00:02.9]} 43. Ne6 {[%clk 0:00:15.4]} 43... g5 {[%clk 0:00:01.6]}
44. Nxc7 {[%clk 0:00:15.7]} 44... Bd7 {[%clk 0:00:02.4]} 45. Na8 {[%clk
0:00:13.6]} 45... Re2 {[%clk 0:00:02.8]} 46. Nxb6 {[%clk 0:00:13.6]} 46... Bf5
{[%clk 0:00:03.4]} 47. Rf3 {[%clk 0:00:12]} 47... Be4 {[%clk 0:00:03.3]} 48. Rg3
{[%clk 0:00:12.5]} 48... Kf7 {[%clk 0:00:02.5]} 49. Nc8 {[%clk 0:00:11.3]} 49...
Kg6 {[%clk 0:00:03]} 50. Nxd6 {[%clk 0:00:11.5]} 50... Bc2 {[%clk 0:00:03.9]}
51. c5 {[%clk 0:00:11.8]} 51... f5 {[%clk 0:00:04.3]} 52. c6 {[%clk 0:00:11]}
52... f4 {[%clk 0:00:04.8]} 53. Rc3 {[%clk 0:00:09.4]} 53... f3 {[%clk
0:00:03.3]} 54. Rxf3 {[%clk 0:00:08.3]} 54... Bf5 {[%clk 0:00:01.3]} 55. Rxf5
{[%clk 0:00:07.1]} 55... Rc2 {[%clk 0:00:02.2]} 56. Rf3 {[%clk 0:00:05]} 56...
Kh5 {[%clk 0:00:03.1]} 57. Rd3 {[%clk 0:00:04.2]} 57... g4 {[%clk 0:00:03.5]}
58. Rd4 {[%clk 0:00:04.7]} 58... Kh4 {[%clk 0:00:03.8]} 59. Nf5+ {[%clk
0:00:04]} 59... Kg5 {[%clk 0:00:03.5]} 60. Rc4 {[%clk 0:00:04.9]} 60... Rd2
{[%clk 0:00:03.2]} 61. c7 {[%clk 0:00:04.8]} 61... g3+ {[%clk 0:00:02.1]} 62.
Nxg3 {[%clk 0:00:04.9]} 62... Rd3 {[%clk 0:00:01.1]} 63. c8=Q {[%clk 0:00:04.7]}
63... Rd2 {[%clk 0:00:02]} 64. Qf5+ {[%clk 0:00:04.4]} 64... Kh6 {[%clk
0:00:02.1]} 65. Rh4+ {[%clk 0:00:05]} 65... Kg7 {[%clk 0:00:03]} 66. Rh7+ {[%clk
0:00:05.6]} 66... Kg8 {[%clk 0:00:03.9]} 67. Qf7# {[%clk 0:00:06.3]} 1-0

[Event "Early-Titled-Tuesday-Blitz-November-28-2023"]
[Site "Chess.com"]
[Date "2023.11.28"]
[Round "9"]
[White "shimastream"]
[Black "vasblesk"]
[Result "1-0"]
[WhiteElo "2949"]
[BlackElo "2829"]
[TimeControl "180+1"]
[EndTime "9:52:54 PST"]
[Termination "shimastream won by resignation"]

1. d4 {[%clk 0:02:51.9]} 1... d5 {[%clk 0:02:55.7]} 2. c4 {[%clk 0:02:42.6]}
2... c6 {[%clk 0:02:53.3]} 3. Nf3 {[%clk 0:02:20.2]} 3... Nf6 {[%clk 0:02:51.3]}
4. Qb3 {[%clk 0:02:17.2]} 4... dxc4 {[%clk 0:02:10.2]} 5. Qxc4 {[%clk 0:02:16]}
5... Bf5 {[%clk 0:02:04.7]} 6. g3 {[%clk 0:02:13.4]} 6... e6 {[%clk 0:01:58.2]}
7. Bg2 {[%clk 0:02:12.8]} 7... Nbd7 {[%clk 0:01:19.3]} 8. O-O {[%clk 0:02:11.6]}
8... Be7 {[%clk 0:01:09.1]} 9. e3 {[%clk 0:02:11.4]} 9... O-O {[%clk 0:01:05.9]}
10. Rd1 {[%clk 0:02:01.1]} 10... Qc7 {[%clk 0:00:58]} 11. Qe2 {[%clk 0:01:52.5]}
11... Ne4 {[%clk 0:00:54.2]} 12. Nc3 {[%clk 0:01:52.1]} 12... Ndf6 {[%clk
0:00:51.2]} 13. Nd2 {[%clk 0:01:51.7]} 13... Nxc3 {[%clk 0:00:42.4]} 14. bxc3
{[%clk 0:01:52.6]} 14... c5 {[%clk 0:00:31.1]} 15. Bb2 {[%clk 0:01:29.9]} 15...
Rac8 {[%clk 0:00:25.6]} 16. a4 {[%clk 0:01:24.2]} 16... b6 {[%clk 0:00:20.6]}
17. c4 {[%clk 0:01:19]} 17... cxd4 {[%clk 0:00:20.1]} 18. exd4 {[%clk
0:01:19.9]} 18... Rfd8 {[%clk 0:00:18.9]} 19. Rac1 {[%clk 0:01:17.1]} 19... Bg4
{[%clk 0:00:18.7]} 20. Nf3 {[%clk 0:01:16.9]} 20... h6 {[%clk 0:00:15.1]} 21. h3
{[%clk 0:01:15.1]} 21... Bxf3 {[%clk 0:00:15.2]} 22. Bxf3 {[%clk 0:01:15.1]}
22... Qd7 {[%clk 0:00:15.8]} 23. d5 {[%clk 0:01:10.9]} 23... exd5 {[%clk
0:00:13.5]} 24. cxd5 {[%clk 0:01:11.1]} 24... Rxc1 {[%clk 0:00:13.4]} 25. Rxc1
{[%clk 0:01:10.1]} 25... Re8 {[%clk 0:00:14]} 26. Qb5 {[%clk 0:01:03]} 26...
Qxb5 {[%clk 0:00:13.4]} 27. axb5 {[%clk 0:01:03.9]} 27... Bc5 {[%clk 0:00:14]}
28. Rd1 {[%clk 0:00:55.5]} 28... Rd8 {[%clk 0:00:13.1]} 29. Kg2 {[%clk
0:00:36.6]} 29... Ne8 {[%clk 0:00:11.3]} 30. Be2 {[%clk 0:00:36.8]} 30... Nd6
{[%clk 0:00:11.3]} 31. Bd3 {[%clk 0:00:37.2]} 31... Re8 {[%clk 0:00:10.6]} 32.
h4 {[%clk 0:00:36.8]} 32... Re7 {[%clk 0:00:10.9]} 33. g4 {[%clk 0:00:36.3]}
33... Ne8 {[%clk 0:00:09]} 34. g5 {[%clk 0:00:35.2]} 34... h5 {[%clk 0:00:06.4]}
35. g6 {[%clk 0:00:33.2]} 35... Bd6 {[%clk 0:00:05.5]} 36. gxf7+ {[%clk
0:00:29.7]} 36... Kxf7 {[%clk 0:00:06.4]} 37. Rc1 {[%clk 0:00:26.4]} 37... Bc5
{[%clk 0:00:04.5]} 38. Rc4 {[%clk 0:00:26.3]} 38... Nd6 {[%clk 0:00:04.3]} 39.
Rf4+ {[%clk 0:00:26.4]} 39... Ke8 {[%clk 0:00:04.8]} 40. Bg6+ {[%clk 0:00:26.5]}
40... Kd7 {[%clk 0:00:04.8]} 41. Bxh5 {[%clk 0:00:25.1]} 41... Nxb5 {[%clk
0:00:04.8]} 42. Bg4+ {[%clk 0:00:25]} 42... Kc7 {[%clk 0:00:04.6]} 43. h5 {[%clk
0:00:23.8]} 43... a5 {[%clk 0:00:04.7]} 44. Be6 {[%clk 0:00:22.8]} 44... Nd6
{[%clk 0:00:03.6]} 45. Rg4 {[%clk 0:00:22.8]} 45... Ne8 {[%clk 0:00:04]} 46.
Be5+ {[%clk 0:00:17.4]} 46... Bd6 {[%clk 0:00:03.8]} 47. Rc4+ {[%clk 0:00:17.6]}
47... Kb7 {[%clk 0:00:04]} 48. Bd4 {[%clk 0:00:17.8]} 48... Nc7 {[%clk
0:00:03.8]} 49. Rc6 {[%clk 0:00:17.5]} 49... Bc5 {[%clk 0:00:04.3]} 50. Bxc5
{[%clk 0:00:13.3]} 50... bxc5 {[%clk 0:00:05.2]} 51. Rxc5 {[%clk 0:00:12.6]}
51... Nxe6 {[%clk 0:00:05.1]} 52. dxe6 {[%clk 0:00:13.5]} 52... Rxe6 {[%clk
0:00:06]} 53. Rxa5 {[%clk 0:00:13.8]} 53... Rh6 {[%clk 0:00:04.2]} 54. Kg3
{[%clk 0:00:12.6]} 54... Kc6 {[%clk 0:00:04.4]} 55. Ra6+ {[%clk 0:00:11.6]}
55... Kd5 {[%clk 0:00:04]} 56. Rxh6 {[%clk 0:00:12.2]} 56... gxh6 {[%clk
0:00:04.9]} 57. Kf4 {[%clk 0:00:12.4]} 57... Ke6 {[%clk 0:00:04.8]} 58. Ke4
{[%clk 0:00:10.8]} 58... Kf6 {[%clk 0:00:04.4]} 59. f4 {[%clk 0:00:03.8]} 59...
Ke6 {[%clk 0:00:02.8]} 60. f5+ {[%clk 0:00:04]} 60... Kf7 {[%clk 0:00:02.7]} 61.
Ke5 {[%clk 0:00:04]} 61... Ke7 {[%clk 0:00:03.3]} 62. f6+ {[%clk 0:00:04.3]}
62... Ke8 {[%clk 0:00:04]} 63. Ke6 {[%clk 0:00:04.1]} 63... Kf8 {[%clk
0:00:04.5]} 64. f7 {[%clk 0:00:03.8]} 64... Kg7 {[%clk 0:00:05.4]} 65. Ke7
{[%clk 0:00:04.2]} 65... Kh7 {[%clk 0:00:06.1]} 66. Kf8 {[%clk 0:00:02.3]} 1-0

[Event "Early-Titled-Tuesday-Blitz-November-28-2023"]
[Site "Chess.com"]
[Date "2023.11.28"]
[Round "9"]
[White "olksuna"]
[Black "Viacheslav92"]
[Result "1/2-1/2"]
[WhiteElo "2727"]
[BlackElo "2570"]
[TimeControl "180+1"]
[EndTime "9:52:55 PST"]
[Termination "Game drawn by repetition"]

1. e4 {[%clk 0:03:00.9]} 1... e5 {[%clk 0:01:22.3]} 2. Nf3 {[%clk 0:02:59.7]}
2... Nc6 {[%clk 0:01:16.3]} 3. Bc4 {[%clk 0:02:59.3]} 3... Bc5 {[%clk
0:01:15.7]} 4. O-O {[%clk 0:02:55.6]} 4... Nf6 {[%clk 0:01:15.2]} 5. d3 {[%clk
0:02:55.1]} 5... d6 {[%clk 0:01:13.6]} 6. Nc3 {[%clk 0:02:52.7]} 6... h6 {[%clk
0:01:12.6]} 7. Na4 {[%clk 0:02:51.5]} 7... Bb6 {[%clk 0:01:12.4]} 8. a3 {[%clk
0:02:41.1]} 8... O-O {[%clk 0:01:10.4]} 9. Ba2 {[%clk 0:02:35]} 9... Be6 {[%clk
0:01:09.7]} 10. Bxe6 {[%clk 0:02:28.6]} 10... fxe6 {[%clk 0:01:10.6]} 11. c4
{[%clk 0:02:28.8]} 11... Nd4 {[%clk 0:01:08.6]} 12. Nxb6 {[%clk 0:02:28.3]}
12... Nxf3+ {[%clk 0:01:05.9]} 13. Qxf3 {[%clk 0:02:27.8]} 13... axb6 {[%clk
0:01:06.8]} 14. Qh3 {[%clk 0:02:26.3]} 14... Qe7 {[%clk 0:01:05]} 15. f4 {[%clk
0:02:26.3]} 15... exf4 {[%clk 0:01:04.2]} 16. Bxf4 {[%clk 0:02:27.2]} 16... e5
{[%clk 0:01:02.8]} 17. Be3 {[%clk 0:02:25.7]} 17... Rf7 {[%clk 0:01:03.1]} 18.
Rf5 {[%clk 0:02:25.4]} 18... Raf8 {[%clk 0:01:03.3]} 19. Raf1 {[%clk 0:02:25.5]}
19... Nd7 {[%clk 0:00:59.2]} 20. Qh5 {[%clk 0:02:18.4]} 20... Rxf5 {[%clk
0:00:58.2]} 21. exf5 {[%clk 0:02:17.7]} 21... Qf7 {[%clk 0:00:58.5]} 22. Qf3
{[%clk 0:02:12.9]} 22... c6 {[%clk 0:00:56.6]} 23. g4 {[%clk 0:02:12.6]} 23...
d5 {[%clk 0:00:57]} 24. cxd5 {[%clk 0:02:08.6]} 24... cxd5 {[%clk 0:00:55]} 25.
Rc1 {[%clk 0:02:05.8]} 25... Nf6 {[%clk 0:00:53.1]} 26. Bxb6 {[%clk 0:02:02.2]}
26... e4 {[%clk 0:00:52.9]} 27. dxe4 {[%clk 0:01:58.5]} 27... dxe4 {[%clk
0:00:53.7]} 28. Qe2 {[%clk 0:01:46.2]} 28... Re8 {[%clk 0:00:50]} 29. Be3 {[%clk
0:01:35.8]} 29... Nd5 {[%clk 0:00:48.1]} 30. Kg2 {[%clk 0:01:34.2]} 30... Kh7
{[%clk 0:00:43]} 31. h3 {[%clk 0:01:33.5]} 31... Qf6 {[%clk 0:00:41.9]} 32. Rc2
{[%clk 0:01:26.3]} 32... Qe5 {[%clk 0:00:41.5]} 33. Qf2 {[%clk 0:01:19.9]} 33...
b5 {[%clk 0:00:36.6]} 34. Re2 {[%clk 0:01:18.7]} 34... Rc8 {[%clk 0:00:28.5]}
35. Qg3 {[%clk 0:01:16]} 35... Nxe3+ {[%clk 0:00:25.2]} 36. Qxe3 {[%clk
0:01:12]} 36... Re8 {[%clk 0:00:25.3]} 37. Rf2 {[%clk 0:01:02.1]} 37... Re7
{[%clk 0:00:21.2]} 38. h4 {[%clk 0:00:55.9]} 38... Rd7 {[%clk 0:00:20.5]} 39.
Re2 {[%clk 0:00:49.2]} 39... Re7 {[%clk 0:00:15.7]} 40. Qg3 {[%clk 0:00:45.3]}
40... Qd5 {[%clk 0:00:14.6]} 41. Qe3 {[%clk 0:00:43.7]} 41... Qe5 {[%clk
0:00:14.9]} 42. Kh3 {[%clk 0:00:43.4]} 42... Kh8 {[%clk 0:00:10.6]} 43. Rf2
{[%clk 0:00:40.2]} 43... Rd7 {[%clk 0:00:10.2]} 44. Re2 {[%clk 0:00:37]} 44...
Rd1 {[%clk 0:00:09.5]} 45. Re1 {[%clk 0:00:30.5]} 45... Rxe1 {[%clk 0:00:06.4]}
46. Qxe1 {[%clk 0:00:30.5]} 46... Qxb2 {[%clk 0:00:07.1]} 47. Qxe4 {[%clk
0:00:27.2]} 47... Qxa3+ {[%clk 0:00:07.5]} 48. Kg2 {[%clk 0:00:27.7]} 48... Qa2+
{[%clk 0:00:06.7]} 49. Kf3 {[%clk 0:00:26.3]} 49... Qa3+ {[%clk 0:00:06.8]} 50.
Kg2 {[%clk 0:00:25.9]} 50... Qa2+ {[%clk 0:00:07]} 51. Kf3 {[%clk 0:00:20.5]}
51... Qa3+ {[%clk 0:00:05.2]} 52. Ke2 {[%clk 0:00:20.7]} 52... Qa2+ {[%clk
0:00:04.5]} 53. Ke3 {[%clk 0:00:19.3]} 53... Qa3+ {[%clk 0:00:04.6]} 54. Qd3
{[%clk 0:00:19]} 54... b4 {[%clk 0:00:04.9]} 55. Kd4 {[%clk 0:00:17.7]} 55...
Qa7+ {[%clk 0:00:02.6]} 56. Ke5 {[%clk 0:00:15.7]} 56... Qc7+ {[%clk 0:00:02.9]}
57. Ke6 {[%clk 0:00:14.8]} 57... Qc6+ {[%clk 0:00:02.4]} 58. Kf7 {[%clk
0:00:13.8]} 58... Qc7+ {[%clk 0:00:02.7]} 59. Ke8 {[%clk 0:00:13.1]} 59... Qc6+
{[%clk 0:00:02.5]} 60. Kd8 {[%clk 0:00:13.2]} 60... Qb6+ {[%clk 0:00:02.8]} 61.
Ke7 {[%clk 0:00:13.7]} 61... Qc7+ {[%clk 0:00:02.9]} 62. Ke6 {[%clk 0:00:08.9]}
62... Qc6+ {[%clk 0:00:03.2]} 63. Ke7 {[%clk 0:00:09.4]} 63... Qc7+ {[%clk
0:00:03.5]} 64. Ke6 {[%clk 0:00:09.9]} 1/2-1/2

[Event "Early-Titled-Tuesday-Blitz-November-28-2023"]
[Site "Chess.com"]
[Date "2023.11.28"]
[Round "9"]
[White "Kovalyov_Eduard"]
[Black "Roman_Ovetchkin"]
[Result "0-1"]
[WhiteElo "2461"]
[BlackElo "2649"]
[TimeControl "180+1"]
[EndTime "9:52:59 PST"]
[Termination "Roman_Ovetchkin won by checkmate"]

1. d4 {[%clk 0:02:55]} 1... Nf6 {[%clk 0:02:59]} 2. c4 {[%clk 0:02:55.2]} 2...
c5 {[%clk 0:02:58.5]} 3. d5 {[%clk 0:02:54.6]} 3... b5 {[%clk 0:02:58.7]} 4.
cxb5 {[%clk 0:02:55.1]} 4... a6 {[%clk 0:02:59.3]} 5. bxa6 {[%clk 0:02:55.7]}
5... g6 {[%clk 0:02:59.9]} 6. Nc3 {[%clk 0:02:56.1]} 6... Bg7 {[%clk 0:03:00.1]}
7. e4 {[%clk 0:02:56.7]} 7... O-O {[%clk 0:03:00.3]} 8. a7 {[%clk 0:02:57.2]}
8... Rxa7 {[%clk 0:02:59.9]} 9. Nf3 {[%clk 0:02:57.6]} 9... Ba6 {[%clk
0:02:59.3]} 10. Bxa6 {[%clk 0:02:55.4]} 10... Nxa6 {[%clk 0:02:50.4]} 11. O-O
{[%clk 0:02:55.6]} 11... Qa8 {[%clk 0:02:45.2]} 12. e5 {[%clk 0:02:44.7]} 12...
Ne8 {[%clk 0:02:32.4]} 13. Re1 {[%clk 0:02:44.3]} 13... Nb4 {[%clk 0:02:26.4]}
14. a3 {[%clk 0:02:33.4]} 14... d6 {[%clk 0:02:09.7]} 15. Bf4 {[%clk 0:02:23.5]}
15... Na6 {[%clk 0:02:06]} 16. exd6 {[%clk 0:02:10.6]} 16... exd6 {[%clk
0:01:50.4]} 17. Qd2 {[%clk 0:01:54.7]} 17... Nac7 {[%clk 0:01:40.2]} 18. Rad1
{[%clk 0:01:46.7]} 18... Rb7 {[%clk 0:01:37.1]} 19. Ng5 {[%clk 0:01:20.1]} 19...
Qb8 {[%clk 0:01:26.4]} 20. Re2 {[%clk 0:01:19.8]} 20... Rb6 {[%clk 0:01:07.7]}
21. h4 {[%clk 0:01:15]} 21... Nf6 {[%clk 0:01:01.9]} 22. f3 {[%clk 0:00:42]}
22... Nh5 {[%clk 0:00:53.2]} 23. Bh2 {[%clk 0:00:39]} 23... Bd4+ {[%clk
0:00:45.7]} 24. Kh1 {[%clk 0:00:39.2]} 24... Ng7 {[%clk 0:00:34.2]} 25. Nge4
{[%clk 0:00:38.1]} 25... Nf5 {[%clk 0:00:32.1]} 26. h5 {[%clk 0:00:24.7]} 26...
Rd8 {[%clk 0:00:25.2]} 27. Rf1 {[%clk 0:00:22.5]} 27... Bg7 {[%clk 0:00:20.7]}
28. hxg6 {[%clk 0:00:21.8]} 28... hxg6 {[%clk 0:00:20.7]} 29. g4 {[%clk
0:00:22.3]} 29... Nd4 {[%clk 0:00:20.9]} 30. Ref2 {[%clk 0:00:19.8]} 30... Qa8
{[%clk 0:00:21.1]} 31. Kg2 {[%clk 0:00:17.4]} 31... Nxd5 {[%clk 0:00:21.3]} 32.
Nxd5 {[%clk 0:00:15.2]} 32... Qxd5 {[%clk 0:00:22.2]} 33. Nc3 {[%clk 0:00:13.7]}
33... Qc6 {[%clk 0:00:22.4]} 34. Ne4 {[%clk 0:00:14]} 34... d5 {[%clk
0:00:21.7]} 35. Nc3 {[%clk 0:00:14.4]} 35... Rdb8 {[%clk 0:00:21.5]} 36. b4
{[%clk 0:00:13.4]} 36... cxb4 {[%clk 0:00:21.1]} 37. axb4 {[%clk 0:00:13.8]}
37... Rxb4 {[%clk 0:00:22]} 38. Nd1 {[%clk 0:00:13.3]} 38... Rb3 {[%clk
0:00:21.5]} 39. Ne3 {[%clk 0:00:11]} 39... Qe6 {[%clk 0:00:20.9]} 40. Re1 {[%clk
0:00:09.4]} 40... Qd7 {[%clk 0:00:16.8]} 41. f4 {[%clk 0:00:08.7]} 41... Rb2
{[%clk 0:00:12.2]} 42. Qd3 {[%clk 0:00:08.2]} 42... Rxf2+ {[%clk 0:00:11.5]} 43.
Kxf2 {[%clk 0:00:09.1]} 43... Rb3 {[%clk 0:00:09.8]} 44. Qd2 {[%clk 0:00:07.7]}
44... Qb5 {[%clk 0:00:10]} 45. Rd1 {[%clk 0:00:07.2]} 45... Rb2 {[%clk
0:00:10.1]} 46. Kg3 {[%clk 0:00:06]} 46... Rxd2 {[%clk 0:00:09.7]} 47. Rxd2
{[%clk 0:00:06.9]} 47... Qf1 {[%clk 0:00:10.1]} 48. Rf2 {[%clk 0:00:05.8]} 48...
Qe1 {[%clk 0:00:09.4]} 49. Ng2 {[%clk 0:00:05.6]} 49... Qe4 {[%clk 0:00:08.6]}
50. Kh3 {[%clk 0:00:04.9]} 50... f5 {[%clk 0:00:07.1]} 51. Kg3 {[%clk
0:00:04.6]} 51... Ne2+ {[%clk 0:00:06.2]} 52. Kh3 {[%clk 0:00:04]} 52... d4
{[%clk 0:00:06.6]} 53. Bg3 {[%clk 0:00:03.2]} 53... d3 {[%clk 0:00:06.7]} 54. g5
{[%clk 0:00:03.5]} 54... d2 {[%clk 0:00:07]} 55. Bh2 {[%clk 0:00:03.4]} 55...
d1=Q {[%clk 0:00:07.4]} 56. Bg3 {[%clk 0:00:03.6]} 56... Qdd3 {[%clk 0:00:07.9]}
57. Ne1 {[%clk 0:00:02]} 57... Qc3 {[%clk 0:00:05.4]} 58. Rg2 {[%clk 0:00:01.4]}
58... Nxg3 {[%clk 0:00:05.1]} 59. Rxg3 {[%clk 0:00:01.7]} 59... Qxg3+ {[%clk
0:00:05.9]} 60. Kxg3 {[%clk 0:00:02.2]} 60... Qxe1+ {[%clk 0:00:06.8]} 61. Kf3
{[%clk 0:00:02.8]} 61... Qf1+ {[%clk 0:00:06.9]} 62. Kg3 {[%clk 0:00:03.6]}
62... Qg1+ {[%clk 0:00:07.3]} 63. Kh4 {[%clk 0:00:04]} 63... Qg4# {[%clk
0:00:08.1]} 0-1

[Event "Early-Titled-Tuesday-Blitz-November-28-2023"]
[Site "Chess.com"]
[Date "2023.11.28"]
[Round "9"]
[White "TRadjabov"]
[Black "luckyswitchback"]
[Result "1-0"]
[WhiteElo "3028"]
[BlackElo "2805"]
[TimeControl "180+1"]
[EndTime "9:53:02 PST"]
[Termination "TRadjabov won on time"]

1. d4 {[%clk 0:03:00.9]} 1... Nf6 {[%clk 0:02:59.3]} 2. Nf3 {[%clk 0:03:00.8]}
2... e6 {[%clk 0:02:58.9]} 3. Nc3 {[%clk 0:03:00.7]} 3... d5 {[%clk 0:02:58.8]}
4. Bg5 {[%clk 0:03:00.7]} 4... Nbd7 {[%clk 0:02:58.7]} 5. e3 {[%clk 0:03:00.8]}
5... h6 {[%clk 0:02:58.5]} 6. Bh4 {[%clk 0:03:00.8]} 6... Be7 {[%clk 0:02:57.2]}
7. Be2 {[%clk 0:02:59.3]} 7... O-O {[%clk 0:02:57.3]} 8. O-O {[%clk 0:02:59.1]}
8... b6 {[%clk 0:02:57.7]} 9. a4 {[%clk 0:02:58.3]} 9... a6 {[%clk 0:02:55.8]}
10. Nb1 {[%clk 0:02:55.2]} 10... c5 {[%clk 0:02:53.9]} 11. Nbd2 {[%clk 0:02:55]}
11... Bb7 {[%clk 0:02:53]} 12. c3 {[%clk 0:02:55.2]} 12... Bd6 {[%clk
0:02:41.4]} 13. Re1 {[%clk 0:02:50.9]} 13... Re8 {[%clk 0:02:37.7]} 14. Qb3
{[%clk 0:02:42.1]} 14... Qc7 {[%clk 0:02:33.8]} 15. Bg3 {[%clk 0:02:32.3]} 15...
Bxg3 {[%clk 0:02:32.3]} 16. hxg3 {[%clk 0:02:32.9]} 16... e5 {[%clk 0:02:26]}
17. dxe5 {[%clk 0:02:31]} 17... Nxe5 {[%clk 0:02:26.9]} 18. Nxe5 {[%clk
0:02:30.8]} 18... Rxe5 {[%clk 0:02:27.8]} 19. Nf3 {[%clk 0:02:26.2]} 19... Re6
{[%clk 0:02:26.2]} 20. Bf1 {[%clk 0:02:22.1]} 20... Rd8 {[%clk 0:02:21.1]} 21.
Red1 {[%clk 0:02:17.2]} 21... Ne4 {[%clk 0:02:05.1]} 22. c4 {[%clk 0:02:03.1]}
22... d4 {[%clk 0:01:27.9]} 23. exd4 {[%clk 0:01:58.5]} 23... cxd4 {[%clk
0:01:28.8]} 24. Rxd4 {[%clk 0:01:52.7]} 24... Rxd4 {[%clk 0:01:26.8]} 25. Nxd4
{[%clk 0:01:52.9]} 25... Rf6 {[%clk 0:01:08.1]} 26. Nf3 {[%clk 0:01:46.9]} 26...
Qc5 {[%clk 0:01:08.2]} 27. Qc2 {[%clk 0:01:41.1]} 27... Nxg3 {[%clk 0:01:08.1]}
28. b4 {[%clk 0:01:40.9]} 28... Qf5 {[%clk 0:00:56.3]} 29. Qxf5 {[%clk
0:01:24.8]} 29... Nxf5 {[%clk 0:00:57.2]} 30. Ne5 {[%clk 0:01:25.5]} 30... Re6
{[%clk 0:00:51.7]} 31. Nd3 {[%clk 0:01:25.4]} 31... Nd4 {[%clk 0:00:50.6]} 32.
c5 {[%clk 0:01:12.3]} 32... Nb3 {[%clk 0:00:51]} 33. Ra3 {[%clk 0:01:00.9]}
33... Nd2 {[%clk 0:00:38.3]} 34. b5 {[%clk 0:00:58.7]} 34... Nxf1 {[%clk
0:00:27]} 35. Kxf1 {[%clk 0:00:48.1]} 35... axb5 {[%clk 0:00:22.6]} 36. axb5
{[%clk 0:00:48]} 36... bxc5 {[%clk 0:00:23]} 37. Nxc5 {[%clk 0:00:44.5]} 37...
Rb6 {[%clk 0:00:23.2]} 38. Nxb7 {[%clk 0:00:33.4]} 38... Rxb7 {[%clk 0:00:24.1]}
39. Rb3 {[%clk 0:00:34]} 39... Kf8 {[%clk 0:00:20.4]} 40. Ke2 {[%clk 0:00:34.3]}
40... Ke7 {[%clk 0:00:20.8]} 41. Kd3 {[%clk 0:00:34.7]} 41... Kd6 {[%clk
0:00:17.4]} 42. Kd4 {[%clk 0:00:35.2]} 42... Rb6 {[%clk 0:00:15.6]} 43. Kc4
{[%clk 0:00:34.8]} 43... Kc7 {[%clk 0:00:15.9]} 44. Re3 {[%clk 0:00:32.9]} 44...
Rf6 {[%clk 0:00:15.9]} 45. f3 {[%clk 0:00:30.3]} 45... Kb6 {[%clk 0:00:15.4]}
46. Re5 {[%clk 0:00:22.8]} 46... g6 {[%clk 0:00:13.7]} 47. Kd4 {[%clk
0:00:22.3]} 47... h5 {[%clk 0:00:10.4]} 48. Ke4 {[%clk 0:00:18]} 48... Kc7
{[%clk 0:00:09.3]} 49. f4 {[%clk 0:00:16.1]} 49... Kb6 {[%clk 0:00:09]} 50. Kf3
{[%clk 0:00:15.8]} 50... Kc7 {[%clk 0:00:08.7]} 51. g3 {[%clk 0:00:16]} 51...
Kb6 {[%clk 0:00:08.9]} 52. Ke3 {[%clk 0:00:16.6]} 52... Ka5 {[%clk 0:00:08.6]}
53. Ke4 {[%clk 0:00:16.8]} 53... Kb6 {[%clk 0:00:09]} 54. f5 {[%clk 0:00:16]}
54... gxf5+ {[%clk 0:00:03.7]} 55. Rxf5 {[%clk 0:00:16.1]} 55... Rg6 {[%clk
0:00:04.4]} 56. Kf4 {[%clk 0:00:15.5]} 56... Rg4+ {[%clk 0:00:03.5]} 57. Kf3
{[%clk 0:00:16]} 57... Rb4 {[%clk 0:00:02]} 58. Rxh5 {[%clk 0:00:04.6]} 58...
Rxb5 {[%clk 0:00:02.3]} 59. Rh6+ {[%clk 0:00:04]} 59... Kc7 {[%clk 0:00:01.9]}
60. Rf6 {[%clk 0:00:04.2]} 60... Kd8 {[%clk 0:00:01.6]} 61. Rxf7 {[%clk
0:00:04.5]} 61... Ke8 {[%clk 0:00:02.2]} 62. Rf4 {[%clk 0:00:04.6]} 1-0